fUSD/lending_fUSD_20240318
["ID","MTS","AMOUNT","RATE_DAILY","PERIOD"]
[319489305,1710800048579,-1387.79,0.00027397,2]
[319489306,1710800048589,-1736.34,0.00027397,2]
[319489307,1710800048599,-722.05,0.00027397,2]
[319489308,1710800048609,-2682.4,0.00027397,2]
[319489309,1710800048621,-917.72,0.00027397,2]
[319489310,1710800048630,-566.08967569,0.00027397,30]
[319489311,1710800048640,-1582.16,0.00027397,2]
[319489312,1710800048651,-899.67,0.00027397,2]
[319489313,1710800048661,-1197.99,0.00027397,2]
[319489314,1710800048671,-2570.57,0.00027397,2]
[319489315,1710800048681,-832.49,0.00027397,2]
[319489316,1710800048692,-2336.68,0.00027397,2]
[319489317,1710800048701,-714.57,0.00027397,2]
[319489318,1710800048711,-572.14,0.00027397,2]
[319489319,1710800048720,-570.84,0.00027397,2]
[319489320,1710800048729,-1267.22,0.00027397,2]
[319489321,1710800048738,-1986.27,0.00027397,2]
[319489322,1710800048748,-1031.5,0.00027397,2]
[319489323,1710800048759,-1487.73,0.00027397,2]
[319489324,1710800048768,-713.53,0.00027397,2]
[319489325,1710800048777,-1462.06,0.00027397,2]
[319489326,1710800048787,-689.87194216,0.00027397,30]
[319489327,1710800048796,-662.67,0.00027397,2]
[319489328,1710800048806,-1113.91,0.00027397,2]
[319489329,1710800048816,-1374.98,0.00027397,2]
[319489330,1710800048825,-2453.88,0.00027397,2]
[319489331,1710800048835,-584.72,0.00027397,2]
[319489332,1710800048845,-2831.64,0.00027397,2]
[319489333,1710800048854,-1349.99,0.00027397,2]
[319489334,1710800048864,-1466.21,0.00027397,2]
[319489335,1710800048873,-150.0,0.00027397,2]
[319489336,1710800048882,-1118.72,0.00027397,2]
[319489337,1710800048892,-606.91,0.00027397,2]
[319489338,1710800048902,-1958.41,0.00027397,2]
[319489339,1710800048911,-1580.15,0.00027397,2]
[319489340,1710800048921,-605.4,0.00027397,2]
[319489341,1710800048931,-500.0,0.00027397,2]
[319489342,1710800048941,-942.42,0.00027397,2]
[319489343,1710800048950,-569.15,0.00027397,2]
[319489344,1710800048961,-1400.41,0.00027397,2]
[319489345,1710800048970,-941.12,0.00027397,2]
[319489346,1710800048979,-1781.44,0.00027397,2]
[319489347,1710800048989,-1912.95,0.00027397,2]
[319489348,1710800048998,-713.68,0.00027397,2]
[319489349,1710800049008,-1203.57,0.00027397,2]
[319489350,1710800049018,-905.72,0.00027397,2]
[319489351,1710800049027,-4393.41,0.00027397,2]
[319489352,1710800049036,-2303.75,0.00027397,2]
[319489353,1710800049045,-1144.14,0.00027397,2]
[319489354,1710800049054,-1229.49,0.00027397,2]
[319489355,1710800049064,-511.29,0.00027397,2]
[319489356,1710800049073,-1401.22,0.00027397,2]
[319489357,1710800049082,-500.0,0.00027397,2]
[319489358,1710800049092,-1432.28,0.00027397,2]
[319489359,1710800049101,-516.82,0.00027397,2]
[319489360,1710800049110,-1305.33,0.00027397,2]
[319489361,1710800049120,-678.53,0.00027397,2]
[319489362,1710800049129,-581.47,0.00027397,2]
[319489363,1710800049138,-737.52,0.00027397,2]
[319489364,1710800049148,-1022.21,0.00027397,2]
[319489365,1710800049157,-1654.91,0.00027397,2]
[319489366,1710800049167,-745.31,0.00027397,2]
[319489367,1710800049177,-7202.93,0.00027397,2]
[319489368,1710800049187,-20689.66,0.00027397,2]
[319489369,1710800049196,-2992.02,0.00027397,2]
[319489370,1710800049206,-638.22,0.00027397,2]
[319489371,1710800049216,-1088.66,0.00027397,2]
[319489372,1710800049226,-1110.24,0.00027397,2]
[319489373,1710800049235,-1157.8,0.00027397,2]
[319489374,1710800049245,-1090.38,0.00027397,2]
[319489375,1710800049255,-1367.92,0.00027397,2]
[319489376,1710800049265,-1716.46,0.00027397,2]
[319489377,1710800049275,-605.07,0.00027397,2]
[319489378,1710800049285,-622.92,0.00027397,2]
[319489379,1710800049295,-8212.3,0.00027397,2]
[319489380,1710800049305,-738.47,0.00027397,2]
[319489381,1710800049315,-6843.13,0.00027397,2]
[319489382,1710800049325,-1814.94,0.00027397,2]
[319489383,1710800049335,-2375.9,0.00027397,2]
[319489384,1710800049345,-1412.21,0.00027397,2]
[319489385,1710800049354,-642.05,0.00027397,2]
[319489386,1710800049364,-720.26,0.00027397,2]
[319489387,1710800049374,-2621.03,0.00027397,2]
[319489388,1710800049384,-7701.15,0.00027397,2]
[319489389,1710800049393,-867.51,0.00027397,2]
[319489390,1710800049402,-70618.05,0.00027397,2]
[319489391,1710800049412,-933.88,0.00027397,2]
[319489392,1710800049422,-1283.55,0.00027397,2]
[319489393,1710800049431,-651.4,0.00027397,2]
[319489394,1710800049441,-1968.24,0.00027397,2]
[319489395,1710800049450,-1507.28,0.00027397,2]
[319489396,1710800049459,-500.0,0.00027397,2]
[319489397,1710800049469,-2930.24,0.00027397,2]
[319489398,1710800049478,-908.19,0.00027397,2]
[319489399,1710800049488,-15625.12,0.00027397,2]
[319489400,1710800049497,-817.74305483,0.00027397,2]
[319489401,1710800049508,-836.99,0.00027397,2]
[319489402,1710800049517,-1649.1,0.00027397,2]
[319489403,1710800049528,-386.07,0.00027397,2]
[319489404,1710800049537,-1000.59,0.00027397,2]
[319489405,1710800049547,-3638.93,0.00027397,2]
[319489406,1710800049556,-388.180002,0.00027397,2]
[319489407,1710800049566,-2240.25,0.00027397,2]
[319489408,1710800049575,-1827.91,0.00027397,2]
[319489409,1710800049586,-876.56,0.00027397,2]
[319489410,1710800049595,-2226.67,0.00027397,2]
[319489411,1710800049818,-3729.26,0.00027397,2]
[319489412,1710800049828,-500.0,0.00027397,2]
[319489413,1710800049838,-3606.56,0.00027397,2]
[319489414,1710800049847,-1207.02,0.00027397,2]
[319489415,1710800049857,-963.32,0.00027397,2]
[319489416,1710800049866,-28470.72,0.00027397,2]
[319489417,1710800049875,-2980.27,0.00027397,2]
[319489418,1710800049884,-500.0,0.00027397,2]
[319489419,1710800049893,-500.0,0.00027397,2]
[319489420,1710800049902,-1014.54,0.00027397,2]
[319489421,1710800049911,-1007.55,0.00027397,2]
[319489422,1710800049921,-354.3411818,0.00027397,2]
[319489423,1710800049930,-12991.16,0.00027397,2]
[319489424,1710800049939,-825.64,0.00027397,2]
[319489425,1710800049949,-500.0,0.00027397,2]
[319489426,1710800049958,-1000.56,0.00027397,2]
[319489427,1710800049968,-500.0,0.00027397,2]
[319489428,1710800049977,-1967.21,0.00027397,2]
[319489429,1710800049986,-989.42,0.00027397,2]
[319489430,1710800049996,-3061.78,0.00027397,2]
[319489431,1710800050005,-3350.06,0.00027397,2]
[319489432,1710800050015,-1418.83,0.00027397,2]
[319489433,1710800050025,-578.72,0.00027397,2]
[319489434,1710800050035,-1283.92,0.00027397,2]
[319489435,1710800050044,-1017.47,0.00027397,2]
[319489436,1710800050053,-793.34,0.00027397,2]
[319489437,1710800050062,-500.0,0.00027397,2]
[319489438,1710800050071,-1383.54,0.00027397,2]
[319489439,1710800050081,-3058.85,0.00027397,2]
[319489440,1710800050090,-544.38,0.00027397,2]
[319489441,1710800050099,-4863.68,0.00027397,2]
[319489442,1710800050109,-3420.67,0.00027397,2]
[319489443,1710800050119,-1467.98,0.00027397,2]
[319489444,1710800050128,-909.74,0.00027397,2]
[319489445,1710800050137,-616.14,0.00027397,2]
[319489446,1710800050146,-534.6685735,0.00027397,2]
[319489447,1710800050155,-1391.49,0.00027397,2]
[319489448,1710800050164,-1472.05,0.00027397,2]
[319489449,1710800050173,-501.4,0.00027397,2]
[319489450,1710800050183,-1044.22,0.00027397,2]
[319489451,1710800050192,-736.5,0.00027397,2]
[319489452,1710800050201,-1026.28,0.00027397,2]
[319489453,1710800050211,-1726.54,0.00027397,2]
[319489454,1710800050220,-2302.64,0.00027397,2]
[319489455,1710800050230,-1165.44,0.00027397,2]
[319489456,1710800050239,-12189.86,0.00027397,2]
[319489457,1710800050248,-1375.05,0.00027397,2]
[319489458,1710800050257,-1316.33,0.00027397,2]
[319489459,1710800050266,-515.52,0.00027397,2]
[319489460,1710800050275,-1294.68,0.00027397,2]
[319489461,1710800050284,-1545.51,0.00027397,2]
[319489462,1710800050294,-1925.65,0.00027397,2]
[319489463,1710800050303,-728.8,0.00027397,2]
[319489464,1710800050313,-1530.51,0.00027397,2]
[319489465,1710800050323,-6062.83,0.00027397,2]
[319489466,1710800050332,-1677.75,0.00027397,2]
[319489467,1710800050342,-500.0,0.00027397,2]
[319489468,1710800050351,-630.76,0.00027397,2]
[319489469,1710800050361,-697.84,0.00027397,2]
[319489470,1710800050370,-1154.87,0.00027397,2]
[319489471,1710800050380,-1111.24,0.00027397,2]
[319489472,1710800050389,-2083.43,0.00027397,2]
[319489473,1710800050398,-873.95,0.00027397,2]
[319489474,1710800050408,-1539.77,0.00027397,2]
[319489475,1710800050417,-572.93,0.00027397,2]
[319489476,1710800050426,-1218.6,0.00027397,2]
[319489477,1710800050435,-762.41,0.00027397,2]
[319489478,1710800050445,-805.44,0.00027397,2]
[319489479,1710800050454,-2278.77,0.00027397,2]
[319489480,1710800050463,-2011.92,0.00027397,2]
[319489481,1710800050473,-2062.21,0.00027397,2]
[319489482,1710800050482,-768.87,0.00027397,2]
[319489483,1710800050491,-500.0,0.00027397,2]
[319489484,1710800050501,-971.93,0.00027397,2]
[319489485,1710800050511,-1606.59,0.00027397,2]
[319489486,1710800050520,-1340.16,0.00027397,2]
[319489487,1710800050530,-1007.76,0.00027397,2]
[319489488,1710800050538,-4162.89,0.00027397,2]
[319489489,1710800050547,-1051.06,0.00027397,2]
[319489490,1710800050557,-699.3,0.00027397,2]
[319489491,1710800050567,-1220.37,0.00027397,2]
[319489492,1710800050576,-1416.75,0.00027397,2]
[319489493,1710800050586,-518.73,0.00027397,2]
[319489494,1710800050595,-1475.69,0.00027397,2]
[319489495,1710800050606,-960.76,0.00027397,2]
[319489496,1710800050615,-1579.78,0.00027397,2]
[319489497,1710800050627,-598.24,0.00027397,2]
[319489498,1710800050637,-3689.48,0.00027397,2]
[319489499,1710800050646,-685.26,0.00027397,2]
[319489500,1710800050655,-1883.02,0.00027397,2]
[319489501,1710800050665,-725.93,0.00027397,2]
[319489502,1710800050674,-597.67,0.00027397,2]
[319489503,1710800050683,-582.85,0.00027397,2]
[319489504,1710800050692,-945.24,0.00027397,2]
[319489505,1710800050703,-3264.27,0.00027397,2]
[319489506,1710800050713,-1114.59,0.00027397,2]
[319489507,1710800050722,-1101.09,0.00027397,2]
[319489508,1710800050732,-3081.47,0.00027397,2]
[319489509,1710800050741,-1090.35,0.00027397,2]
[319489510,1710800050750,-545.12,0.00027397,2]
[319489511,1710800050761,-525.35,0.00027397,2]
[319489512,1710800050770,-926.2,0.00027397,2]
[319489513,1710800050779,-738.48,0.00027397,2]
[319489514,1710800050788,-661.43,0.00027397,2]
[319489515,1710800050798,-521.01,0.00027397,2]
[319489516,1710800050807,-2791.36,0.00027397,2]
[319489517,1710800050816,-3873.88,0.00027397,2]
[319489518,1710800050825,-15199.29,0.00027397,2]
[319489519,1710800051170,-1479.1,0.00027397,2]
[319489520,1710800051181,-8062.17,0.00027397,2]
[319489521,1710800051191,-524.35,0.00027397,2]
[319489522,1710800051201,-1469.15,0.00027397,2]
[319489523,1710800051211,-1368.38,0.00027397,2]
[319489524,1710800051220,-578.84,0.00027397,2]
[319489525,1710800051230,-625.58,0.00027397,2]
[319489526,1710800051240,-525.36628943,0.00027397,2]
[319489527,1710800051254,-659.71,0.00027397,2]
[319489528,1710800051266,-1165.69,0.00027397,2]
[319489529,1710800051276,-522.17,0.00027397,2]
[319489530,1710800051286,-500.0,0.00027397,2]
[319489531,1710800051296,-547.31,0.00027397,2]
[319489532,1710800051307,-500.0,0.00027397,2]
[319489533,1710800051317,-1931.5,0.00027397,2]
[319489534,1710800051327,-5194.45,0.00027397,2]
[319489535,1710800051338,-1852.16,0.00027397,2]
[319489536,1710800051347,-4366.56,0.00027397,2]
[319489537,1710800051357,-2626.87,0.00027397,2]
[319489538,1710800051366,-4566.9,0.00027397,2]
[319489539,1710800051375,-643.53,0.00027397,2]
[319489540,1710800051384,-1560.19,0.00027397,2]
[319489541,1710800051394,-574.42,0.00027397,2]
[319489542,1710800051403,-7356.66,0.00027397,2]
[319489543,1710800051413,-2335.37,0.00027397,2]
[319489544,1710800051422,-1433.97,0.00027397,2]
[319489545,1710800051431,-1302.8,0.00027397,2]
[319489546,1710800051440,-12149.23,0.00027397,2]
[319489547,1710800051449,-976.06,0.00027397,2]
[319489548,1710800051459,-500.0,0.00027397,2]
[319489549,1710800051469,-596.59,0.00027397,2]
[319489550,1710800051478,-773.37,0.00027397,2]
[319489551,1710800051488,-12163.47,0.00027397,2]
[319489552,1710800051498,-1040.95,0.00027397,2]
[319489553,1710800051507,-4014.74,0.00027397,2]
[319489554,1710800051518,-1666.88,0.00027397,2]
[319489555,1710800051529,-676.8,0.00027397,2]
[319489556,1710800051538,-798.37,0.00027397,2]
[319489557,1710800051548,-2937.18,0.00027397,2]
[319489558,1710800051558,-514.53,0.00027397,2]
[319489559,1710800051568,-630.18,0.00027397,2]
[319489560,1710800051578,-155.77781705,0.00027397,2]
[319489561,1710800051588,-4002.95,0.00027397,2]
[319489562,1710800051598,-500.0,0.00027397,2]
[319489563,1710800051612,-1825.34,0.00027397,2]
[319489564,1710800051622,-713.44,0.00027397,2]
[319489565,1710800051631,-2538.34,0.00027397,2]
[319489566,1710800051642,-1704.18,0.00027397,2]
[319489567,1710800051652,-2264.59,0.00027397,2]
[319489568,1710800051661,-999.91,0.00027397,2]
[319489569,1710800051671,-3032.32,0.00027397,2]
[319489570,1710800051681,-1092.32,0.00027397,2]
[319489571,1710800051691,-1455.99,0.00027397,2]
[319489572,1710800051703,-1138.58,0.00027397,2]
[319489573,1710800051714,-951.86,0.00027397,2]
[319489574,1710800051724,-780.67,0.00027397,2]
[319489575,1710800051734,-1309.57,0.00027397,2]
[319489576,1710800051745,-191.04250857,0.00027397,2]
[319489577,1710800051755,-4539.82,0.00027397,2]
[319489578,1710800051767,-4994.79,0.00027397,2]
[319489579,1710800051778,-1485.77,0.00027397,2]
[319489580,1710800051789,-7034.98,0.00027397,2]
[319489581,1710800051799,-849.91,0.00027397,2]
[319489582,1710800051810,-500.0,0.00027397,2]
[319489583,1710800051820,-1794.57,0.00027397,2]
[319489584,1710800051830,-750.9,0.00027397,2]
[319489585,1710800051841,-6038.49,0.00027397,2]
[319489586,1710800051851,-1615.86,0.00027397,2]
[319489587,1710800051861,-2385.09,0.00027397,2]
[319489588,1710800051870,-1135.58,0.00027397,2]
[319489589,1710800051879,-6456.64,0.00027397,2]
[319489590,1710800051888,-979.41,0.00027397,2]
[319489591,1710800051898,-942.12,0.00027397,2]
[319489592,1710800051907,-1504.81,0.00027397,2]
[319489593,1710800051916,-854.48,0.00027397,2]
[319489594,1710800051926,-508.22,0.00027397,2]
[319489595,1710800051935,-662.67,0.00027397,2]
[319489596,1710800051945,-40338.6,0.00027397,2]
[319489597,1710800051954,-2157.68,0.00027397,2]
[319489598,1710800051964,-1120.6,0.00027397,2]
[319489599,1710800051973,-2520.23,0.00027397,2]
[319489600,1710800051982,-2358.27,0.00027397,2]
[319489601,1710800051991,-2259.16,0.00027397,2]
[319489602,1710800052000,-4121.83,0.00027397,2]
[319489603,1710800052009,-6231.23,0.00027397,2]
[319489604,1710800052019,-1192.63,0.00027397,2]
[319489605,1710800052029,-1000.0,0.00027397,2]
[319489606,1710800052038,-1000.0,0.00027397,2]
[319489607,1710800052047,-1000.0,0.00027397,2]
[319489608,1710800052056,-1000.0,0.00027397,2]
[319489609,1710800052065,-1000.0,0.00027397,2]
[319489610,1710800052074,-15684.1,0.00027397,2]
[319489611,1710800052083,-1000.0,0.00027397,2]
[319489612,1710800052093,-1000.0,0.00027397,2]
[319489613,1710800052102,-1000.0,0.00027397,2]
[319489614,1710800052112,-1000.0,0.00027397,2]
[319489615,1710800052121,-1000.0,0.00027397,2]
[319489616,1710800052130,-1000.0,0.00027397,2]
[319489617,1710800052139,-1000.0,0.00027397,2]
[319489618,1710800052148,-1000.0,0.00027397,2]
[319489619,1710800052157,-1000.0,0.00027397,2]
[319489620,1710800052168,-1000.0,0.00027397,2]
[319489621,1710800052177,-1000.0,0.00027397,2]
[319489622,1710800052186,-1000.0,0.00027397,2]
[319489623,1710800052195,-1000.0,0.00027397,2]
[319489624,1710800052204,-1000.0,0.00027397,2]
[319489625,1710800052214,-1000.0,0.00027397,2]
[319489626,1710800052223,-1000.0,0.00027397,2]
[319489627,1710800052232,-1000.0,0.00027397,2]
[319489628,1710800052241,-1000.0,0.00027397,2]
[319489629,1710800052251,-1000.0,0.00027397,2]
[319489630,1710800052262,-1000.0,0.00027397,2]
[319489631,1710800052271,-1250.13,0.00027397,10]
[319489632,1710800052280,-79393.74,0.00027397,2]
[319489633,1710800052289,-1000.0,0.00027397,2]
[319489634,1710800052298,-1000.0,0.00027397,2]
[319489635,1710800052307,-1000.0,0.00027397,2]
[319489636,1710800052316,-942.0,0.00027397,2]
[319489637,1710800052325,-1641.989312,0.00027397,3]
[319489638,1710800052335,-300.0,0.00027397,10]
[319489639,1710800052344,-300.0,0.00027397,10]
[319489640,1710800052354,-302.71338657,0.00027397,10]
[319489641,1710800052363,-155.0,0.00027398,2]
[319489642,1710800052372,-25979.13781915,0.000274,2]
[319489643,1710800052381,-5800.0,0.000274,2]
[319489644,1710800052391,-12000.0,0.000274,2]
[319489645,1710800052401,-4285.95395546,0.000274,2]
[319489646,1710800052410,-1805.0,0.000274,2]
[319489647,1710800052419,-21730.82240218,0.000274,2]
[319489648,1710800052429,-1034.47654792,0.000274,2]
[319489649,1710800052439,-5800.0,0.000274,2]
[319489650,1710800052449,-150.0,0.000274,7]
[319489651,1710800052458,-6751.25,0.000274,2]
[319489652,1710800052468,-6751.25,0.000274,2]
[319489653,1710800052477,-6751.25,0.000274,2]
[319489654,1710800052486,-6751.25,0.000274,2]
[319489655,1710800052495,-6751.25,0.000274,2]
[319489656,1710800052505,-302.44,0.00027415,2]
[319489657,1710800052517,-151.05666748,0.00027442,2]
[319489658,1710800052527,-1006.0,0.0002746,2]
[319489659,1710800052536,-4623.0,0.0002746,2]
[319489660,1710800052546,-1063.0,0.0002746,2]
[319489661,1710800052555,-341.0,0.0002746,2]
[319489662,1710800052564,-701.93,0.00027469,2]
[319489663,1710800052574,-150.0,0.00027474,7]
[319489664,1710800052583,-1010.44,0.0002748,2]
[319489665,1710800052593,-187.40370458,0.000275,2]
[319489666,1710800052603,-1116.0,0.000275,16]
[319489667,1710800052612,-150.0,0.0002756,2]
[319489668,1710800052624,-150.0,0.00027597,7]
[319489669,1710800052633,-150.0,0.00027611,7]
[319489670,1710800052643,-181.39923643,0.00027619,2]
[319489671,1710800052653,-150.0,0.00027645,7]
[319489672,1710800052662,-754.65,0.00027671,2]
[319489673,1710800052671,-1183.48,0.00027671,2]
[319489674,1710800052681,-841.06,0.00027671,2]
[319489675,1710800052689,-1050.21,0.00027671,2]
[319489676,1710800052699,-603.24,0.00027671,2]
[319489677,1710800052708,-864.95,0.00027671,2]
[319489678,1710800052718,-801.98,0.00027671,2]
[319489679,1710800052727,-2023.13,0.00027671,2]
[319489680,1710800052736,-2257.25,0.00027671,2]
[319489681,1710800052744,-510.0,0.00027671,120]
[319489682,1710800052753,-1080.91,0.00027671,2]
[319489683,1710800052764,-794.11,0.00027671,2]
[319489684,1710800052773,-753.34,0.00027671,2]
[319489685,1710800052782,-841.73,0.00027671,2]
[319489686,1710800052791,-637.28,0.00027671,2]
[319489687,1710800052800,-2219.16,0.00027671,2]
[319489688,1710800052809,-822.95,0.00027671,2]
[319489689,1710800052818,-532.03,0.00027671,2]
[319489690,1710800052827,-500.0,0.00027671,2]
[319489691,1710800052836,-666.77,0.00027671,2]
[319489692,1710800052846,-1083.62,0.00027671,2]
[319489693,1710800052855,-1096.76,0.00027671,2]
[319489694,1710800052864,-2410.75,0.00027671,2]
[319489695,1710800052873,-1579.95,0.00027671,2]
[319489696,1710800052882,-1153.52,0.00027671,2]
[319489697,1710800052891,-1079.02,0.00027671,2]
[319489698,1710800052900,-500.0,0.00027671,2]
[319489699,1710800052909,-604.92,0.00027671,2]
[319489700,1710800052919,-2112.17,0.00027671,2]
[319489701,1710800052928,-788.06,0.00027671,2]
[319489702,1710800052937,-965.6,0.00027671,2]
[319489703,1710800052947,-567.24,0.00027671,2]
[319489704,1710800052957,-1057.53,0.00027671,2]
[319489705,1710800052966,-1346.77,0.00027671,2]
[319489706,1710800052975,-712.98,0.00027671,2]
[319489707,1710800052984,-624.81,0.00027671,2]
[319489708,1710800052993,-315.39642884,0.00027671,2]
[319489709,1710800053002,-750.79,0.00027671,2]
[319489710,1710800053014,-1820.6,0.00027671,2]
[319489711,1710800053023,-628.64,0.00027671,2]
[319489712,1710800053032,-787.89,0.00027671,2]
[319489713,1710800053041,-593.51,0.00027671,2]
[319489714,1710800053050,-750.42,0.00027671,2]
[319489715,1710800053061,-622.98,0.00027671,2]
[319489716,1710800053070,-1628.79,0.00027671,2]
[319489717,1710800053080,-3414.73,0.00027671,2]
[319489718,1710800053089,-830.73,0.00027671,2]
[319489719,1710800053098,-837.33,0.00027671,2]
[319489720,1710800053107,-1594.83,0.00027671,2]
[319489721,1710800053116,-1565.76,0.00027671,2]
[319489722,1710800053125,-2289.86,0.00027671,2]
[319489723,1710800053134,-2327.27,0.00027671,2]
[319489724,1710800053143,-1043.46,0.00027671,2]
[319489725,1710800053152,-1166.79,0.00027671,2]
[319489726,1710800053161,-549.91,0.00027671,2]
[319489727,1710800053170,-568.66,0.00027671,2]
[319489728,1710800053179,-771.19,0.00027671,2]
[319489729,1710800053188,-2753.66,0.00027671,2]
[319489730,1710800053198,-1513.08,0.00027671,2]
[319489731,1710800053206,-1842.48,0.00027671,2]
[319489732,1710800053215,-1460.74,0.00027671,2]
[319489733,1710800053225,-942.07,0.00027671,2]
[319489734,1710800053234,-895.46,0.00027671,2]
[319489735,1710800053242,-1989.79,0.00027671,2]
[319489736,1710800053251,-1990.34,0.00027671,2]
[319489737,1710800053260,-594.54,0.00027671,2]
[319489738,1710800053271,-570.11,0.00027671,2]
[319489739,1710800053280,-2010.18,0.00027671,2]
[319489740,1710800053289,-1089.38,0.00027671,2]
[319489741,1710800053299,-1225.65,0.00027671,2]
[319489742,1710800053308,-705.19,0.00027671,2]
[319489743,1710800053318,-2976.15,0.00027671,2]
[319489744,1710800053327,-508.99,0.00027671,2]
[319489745,1710800053336,-501.15,0.00027671,2]
[319489746,1710800053345,-1173.9,0.00027671,2]
[319489747,1710800053355,-1969.89,0.00027671,2]
[319489748,1710800053365,-551.56,0.00027671,2]
[319489749,1710800053374,-1787.1,0.00027671,2]
[319489750,1710800053384,-634.39,0.00027671,2]
[319489751,1710800053393,-515.85,0.00027671,2]
[319489752,1710800053403,-1763.14,0.00027671,2]
[319489753,1710800053412,-644.13732781,0.00027671,2]
[319489754,1710800053421,-1610.23,0.00027671,2]
[319489755,1710800053430,-698.44,0.00027671,2]
[319489756,1710800053440,-757.78,0.00027671,2]
[319489757,1710800053449,-1107.01,0.00027671,2]
[319489758,1710800053458,-3621.53,0.00027671,2]
[319489759,1710800053468,-3272.98,0.00027671,2]
[319489760,1710800053477,-500.0,0.00027671,2]
[319489761,1710800053486,-617.42,0.00027671,2]
[319489762,1710800053495,-500.0,0.00027671,2]
[319489763,1710800053626,-833.03,0.00027671,2]
[319489764,1710800053635,-2995.13,0.00027671,2]
[319489765,1710800053644,-1059.1,0.00027671,2]
[319489766,1710800053655,-2205.14,0.00027671,2]
[319489767,1710800053664,-1379.17,0.00027671,2]
[319489768,1710800053673,-1296.97,0.00027671,2]
[319489769,1710800053681,-684.91,0.00027671,2]
[319489770,1710800053690,-500.0,0.00027671,2]
[319489771,1710800053700,-1167.23,0.00027671,2]
[319489772,1710800053709,-1111.67,0.00027671,2]
[319489773,1710800053718,-1840.74,0.00027671,2]
[319489774,1710800053727,-1159.15,0.00027671,2]
[319489775,1710800053735,-1071.26,0.00027671,2]
[319489776,1710800053744,-732.2,0.00027671,2]
[319489777,1710800053754,-2487.12,0.00027671,2]
[319489778,1710800053763,-1409.81,0.00027671,2]
[319489779,1710800053772,-2258.29,0.00027671,2]
[319489780,1710800053781,-885.61,0.00027671,2]
[319489781,1710800053790,-728.7,0.00027671,2]
[319489782,1710800053799,-619.02,0.00027671,2]
[319489783,1710800053808,-981.29,0.00027671,2]
[319489784,1710800053817,-3027.38,0.00027671,2]
[319489785,1710800053826,-2230.77,0.00027671,2]
[319489786,1710800053835,-2148.85,0.00027671,2]
[319489787,1710800053844,-847.31,0.00027671,2]
[319489788,1710800053853,-500.0,0.00027671,2]
[319489789,1710800053862,-1040.92,0.00027671,2]
[319489790,1710800053871,-1016.05,0.00027671,2]
[319489791,1710800053879,-625.78,0.00027671,2]
[319489792,1710800053888,-1988.29,0.00027671,2]
[319489793,1710800053897,-673.87,0.00027671,2]
[319489794,1710800053906,-803.43,0.00027671,2]
[319489795,1710800053915,-2712.0,0.00027671,2]
[319489796,1710800053924,-618.27,0.00027671,2]
[319489797,1710800053932,-925.33,0.00027671,2]
[319489798,1710800053941,-1492.36,0.00027671,2]
[319489799,1710800053950,-1934.24,0.00027671,2]
[319489800,1710800053959,-1347.96,0.00027671,2]
[319489801,1710800053968,-290.46145727,0.00027671,2]
[319489802,1710800053977,-618.35,0.00027671,2]
[319489803,1710800053985,-736.87,0.00027671,2]
[319489804,1710800053994,-1048.99,0.00027671,2]